bitfinex/quotes_SOLUSD_20250226
["timestamp","ask_amount","ask_price","bid_price","bid_amount"]
[1740559291593,88.2306,140.24,140.22,0.03]
[1740559292107,91.07300576,140.24,140.22,0.03]
[1740559297808,10.61887726,140.23,140.22,0.03]
[1740559299326,81.163,140.24,140.23,1.0]
[1740559300184,91.14218857,140.24,140.22,0.03]
[1740559303117,91.14218857,140.24,140.22,1.03]
[1740559304902,84.01158857,140.24,140.22,1.03]
[1740559305105,81.163,140.24,140.23,1.0]
[1740559305417,0.063,140.24,140.23,1.0]
[1740559306698,0.063,140.24,140.23,8.1311]
[1740559307006,0.063,140.24,140.23,247.88074886]
[1740559308927,0.063,140.31,140.3,1.0]
[1740559310421,0.063,140.31,140.3,91.0275]
[1740559310626,0.063,140.31,140.3,83.9]
[1740559314703,0.063,140.31,140.3,1.0]
[1740559319607,0.063,140.31,140.3,83.9]
[1740559319809,0.063,140.31,140.3,92.5586]
[1740559322729,0.063,140.31,140.3,111.20824886]
[1740559322933,0.063,140.31,140.3,92.5586]
[1740559324128,0.063,140.31,140.3,99.074]
[1740559327334,0.063,140.31,140.3,253.92364886]
[1740559327540,0.063,140.31,140.3,255.92364886]
[1740559328125,0.063,140.39,140.38,1.0]
[1740559328833,0.063,140.39,140.38,83.9]
[1740559329143,0.063,140.39,140.38,110.11174886]
[1740559329437,0.063,140.39,140.38,254.43524886]
[1740559329636,0.0001,140.39,140.38,254.43524886]
[1740559329945,0.063,140.43,140.42,41.64964886]
[1740559330115,0.063,140.43,140.42,267.38964886]
[1740559331642,0.0001,140.43,140.42,274.51104886]
[1740559331820,0.0001,140.45,140.44,23.17604886]
[1740559332028,0.0001,140.45,140.44,24.24347945]
[1740559332423,0.0001,140.45,140.44,243.34347945]
[1740559332632,0.0001,140.45,140.44,242.27604886]
[1740559333026,0.063,140.51,140.5,1.0]
[1740559333337,0.063,140.51,140.5,102.54964886]
[1740559333537,0.063,140.51,140.5,109.66704886]
[1740559333734,0.063,140.51,140.5,110.66704886]
[1740559334515,0.063,140.51,140.5,118.27484886]
[1740559335138,0.063,140.51,140.5,254.47484886]
[1740559335546,0.063,140.54,140.53,2.0]
[1740559335741,0.063,140.54,140.53,228.74]
[1740559335924,0.063,140.54,140.53,247.38964886]
[1740559336835,0.063,140.54,140.53,254.50554886]
[1740559337744,0.063,140.54,140.53,258.06195168]
[1740559341244,0.063,140.54,140.53,238.74964886]
[1740559342146,0.063,140.54,140.53,83.9]
[1740559342626,0.063,140.54,140.53,247.86554886]
[1740559343334,0.063,140.54,140.53,240.74964886]
[1740559343633,0.063,140.54,140.53,239.74964886]
[1740559344450,0.063,140.54,140.53,247.86554886]
[1740559345149,0.063,140.54,140.53,239.74964886]
[1740559345348,0.063,140.54,140.53,246.86554886]
[1740559345534,0.063,140.54,140.53,247.86554886]
[1740559345933,0.063,140.58,140.57,47.91114886]
[1740559346131,0.063,140.67,140.66,1.0]
[1740559347347,0.063,140.67,140.65,1.0]
[1740559348842,0.063,140.67,140.66,1.0]
[1740559353848,0.063,140.67,140.66,116.29894886]
[1740559354054,0.063,140.67,140.66,109.18964886]
[1740559354949,0.063,140.67,140.66,116.29894886]
[1740559355931,0.063,140.67,140.66,7.64]
[1740559356353,0.063,140.67,140.66,1.0]
[1740559358839,0.063,140.67,140.65,1.0]
[1740559359654,7.1718,140.67,140.65,1.0]
[1740559359952,24.9438,140.67,140.64,1.0]
[1740559360337,1.5911,140.66,140.62,1.0]
[1740559360538,82.6911,140.66,140.62,1.0]
[1740559361460,24.8844,140.65,140.62,1.0]
[1740559363760,20.0,140.63,140.6,1.0]
[1740559363952,20.0,140.63,140.61,1.0]
[1740559364262,20.0,140.63,140.62,1.0]
[1740559364459,20.0,140.63,140.61,1.0]
[1740559364638,7.1113,140.62,140.6,1.0]
[1740559364959,7.1113,140.62,140.61,1.0]
[1740559365354,7.1113,140.62,140.6,1.0]
[1740559365549,7.1113,140.62,140.61,1.0]
[1740559375272,24.8897,140.62,140.58,1.03]
[1740559375472,20.0,140.59,140.58,0.03]
[1740559376067,20.0,140.59,140.55,1.0]
[1740559376267,20.0,140.59,140.56,1.0]
[1740559376879,101.1,140.59,140.56,1.0]
[1740559377265,7.1133,140.58,140.56,1.0]
[1740559378355,7.1133,140.58,140.57,1.0]
[1740559379150,42.176,140.63,140.61,1.0]
[1740559379151,87.72,140.63,140.61,1.0]
[1740559379356,7.1113,140.62,140.61,1.0]
[1740559379549,10.00044293,140.62,140.6,1.0]
[1740559379776,7.1113,140.62,140.6,1.0]
[1740559380169,28.54032275,140.62,140.58,1.0]
[1740559380361,20.0,140.59,140.58,1.0]
[1740559380571,20.0,140.59,140.56,1.0]
[1740559380768,20.0,140.58,140.56,1.0]
[1740559380964,20.0,140.58,140.55,1.0]
[1740559381169,7.1143,140.56,140.54,1.0]
[1740559381791,7.1143,140.56,140.55,1.0]
[1740559383479,20.0,140.56,140.54,1.0]
[1740559384421,20.0,140.56,140.55,1.0]
[1740559385210,20.0,140.56,140.53,1.0]
[1740559386092,7.1149,140.55,140.54,1.0]
[1740559386297,7.1149,140.55,140.53,1.0]
[1740559386619,24.9021,140.55,140.52,1.0]
[1740559386821,20.0,140.53,140.52,1.0]
[1740559387317,20.0,140.53,140.51,1.0]
[1740559387702,20.0,140.53,140.52,1.0]
[1740559388012,27.1159,140.53,140.51,1.0]
[1740559388518,27.1159,140.53,140.52,1.0]
[1740559389191,27.1159,140.53,140.51,1.0]
[1740559389392,27.1159,140.53,140.52,1.0]
[1740559390517,27.1159,140.53,140.5,0.03]
[1740559390518,27.1159,140.53,140.51,1.0]
[1740559390720,27.1159,140.53,140.52,1.0]
[1740559391210,27.1159,140.53,140.52,1.03]
[1740559392090,27.1159,140.53,140.52,0.03]
[1740559392286,46.5653,140.53,140.5,0.03]
[1740559392539,20.0,140.49,140.46,1.0]
[1740559392690,20.0,140.48,140.46,1.0]
[1740559393020,20.0,140.48,140.47,1.0]
[1740559393499,20.0,140.48,140.45,1.0]
[1740559393700,20.0,140.48,140.44,1.0]
[1740559394113,24.9162,140.47,140.44,1.0]
[1740559394631,24.9162,140.47,140.45,1.0]
[1740559394793,7.1189,140.47,140.46,1.0]
[1740559394988,20.0,140.48,140.47,1.0]
[1740559395402,81.1,140.51,140.47,1.0]
[1740559395597,84.73778629,140.54,140.52,1.0]
[1740559395799,10.75338629,140.54,140.53,1.0]
[1740559397432,10.75914695,140.55,140.54,1.0]
[1740559398941,10.75914695,140.55,140.53,1.0]
[1740559399107,10.75914695,140.55,140.54,1.0]
[1740559399310,20.0,140.53,140.52,1.0]
[1740559400213,20.0,140.53,140.51,1.0]
[1740559400413,27.1159,140.53,140.52,1.0]
[1740559401432,27.1159,140.53,140.51,1.0]
[1740559401845,44.9056,140.53,140.48,1.0]
[1740559402001,81.1,140.52,140.49,1.0]
[1740559403031,81.1,140.52,140.5,0.03]
[1740559404050,7.1169,140.51,140.5,0.03]
[1740559404345,81.1,140.52,140.51,1.0]
[1740559404531,27.116,140.53,140.52,1.0]
[1740559406257,7.116,140.53,140.52,1.0]
[1740559407048,7.1154,140.54,140.52,1.0]
[1740559407233,7.1154,140.54,140.53,1.0]
[1740559408251,7.1154,140.54,140.52,1.0]
[1740559408445,7.1154,140.54,140.53,1.0]
[1740559412556,7.1143,140.56,140.55,1.0]
[1740559413824,7.1133,140.58,140.55,1.0]
[1740559414028,7.1133,140.58,140.57,1.0]
[1740559414845,20.0,140.58,140.57,1.0]
[1740559415046,7.1758,140.59,140.58,1.0]
[1740559415564,7.1758,140.59,140.57,1.0]
[1740559416424,7.1758,140.59,140.58,1.0]
[1740559419553,7.1758,140.59,140.57,1.0]
[1740559420160,7.1758,140.59,140.58,1.0]
[1740559420453,7.1758,140.59,140.56,1.0]
[1740559420637,7.1758,140.59,140.57,1.0]
[1740559420843,7.1758,140.59,140.58,1.0]
[1740559421545,7.1758,140.59,140.57,1.0]
[1740559422061,7.1758,140.59,140.58,1.0]
[1740559424857,7.1758,140.59,140.57,1.0]
[1740559425559,24.958,140.59,140.56,1.0]
[1740559425862,7.1758,140.59,140.58,1.0]
[1740559426647,7.1758,140.59,140.57,1.0]
[1740559426959,24.958,140.59,140.56,1.0]
[1740559427164,24.958,140.59,140.55,1.0]
[1740559427366,24.958,140.59,140.58,1.0]
[1740559427663,24.958,140.59,140.57,1.0]
[1740559428466,24.958,140.59,140.56,1.0]
[1740559428642,24.958,140.59,140.55,1.0]
[1740559428846,106.058,140.59,140.55,1.0]
[1740559429068,20.0,140.56,140.55,1.0]
[1740559429942,27.1143,140.56,140.55,1.0]
[1740559432574,20.0,140.56,140.55,1.0]
[1740559433052,27.1143,140.56,140.55,1.0]
[1740559433966,7.1133,140.58,140.55,1.0]
[1740559434161,88.2759,140.59,140.58,1.0]
[1740559434361,0.063,140.59,140.58,1.0]
[1740559436248,0.063,140.59,140.57,1.0]
[1740559436555,0.063,140.59,140.58,1.0]
[1740559437354,0.063,140.59,140.56,1.0]
[1740559437558,20.063,140.59,140.58,1.0]
[1740559438169,27.1758,140.59,140.58,1.0]
[1740559439466,20.063,140.59,140.58,1.0]
[1740559439868,0.063,140.59,140.58,1.0]
[1740559444466,0.063,140.59,140.58,83.9]
[1740559445574,0.063,140.59,140.58,91.0133]
[1740559450275,0.063,140.59,140.58,83.9]
[1740559456101,0.063,140.59,140.58,254.75324886]
[1740559456302,0.063,140.59,140.58,255.75324886]
[1740559456463,0.063,140.62,140.61,1.0]
[1740559456663,0.063,140.62,140.61,246.36964886]
[1740559456885,0.063,140.62,140.61,253.48144886]
[1740559457591,0.063,140.62,140.61,233.8318]
[1740559458877,0.063,140.62,140.61,234.8318]
[1740559459073,0.063,140.62,140.61,253.48144886]
[1740559459275,0.063,140.62,140.61,254.48144886]
[1740559462793,0.063,140.62,140.61,262.46844886]
[1740559463674,0.063,140.62,140.61,98.507]
[1740559463876,0.063,140.62,140.61,243.8188]
[1740559464081,0.063,140.69,140.66,21.64964886]
[1740559464291,0.063,140.69,140.66,262.46594886]
[1740559466369,0.063,140.69,140.66,98.507]
[1740559467202,0.063,140.69,140.66,90.52]
[1740559467901,0.063,140.69,140.66,1.0]
[1740559468491,7.1708,140.69,140.66,1.0]
[1740559469173,20.063,140.67,140.66,1.0]
[1740559469399,20.0,140.66,140.6,219.1]
[1740559469883,20.0,140.65,140.6,82.9]
[1740559470381,7.1103,140.64,140.57,89.3885]
[1740559470580,24.8861,140.64,140.57,82.9]
[1740559471286,27.1099,140.65,140.57,91.0137]
[1740559471607,7.1099,140.65,140.58,1.0]
[1740559472903,27.1719,140.67,140.59,20.64964886]
[1740559473208,0.063,140.67,140.61,6.4147]
[1740559473375,0.063,140.67,140.61,225.5147]
[1740559473578,7.1718,140.67,140.61,219.1]
[1740559473783,27.1718,140.67,140.61,219.1]
[1740559474177,44.9438,140.67,140.61,219.1]
[1740559474378,24.8844,140.65,140.57,89.3147]
[1740559474572,105.9844,140.65,140.57,82.9]
[1740559474799,20.0,140.62,140.57,82.9]
[1740559475382,105.9844,140.65,140.57,82.9]
[1740559475383,88.2098,140.65,140.57,82.9]
[1740559475582,7.1098,140.65,140.57,226.2137]
[1740559476001,7.1098,140.65,140.57,219.1]
[1740559476213,7.1728,140.65,140.57,219.1]
[1740559476385,20.0,140.62,140.57,219.1]
[1740559476704,7.1118,140.61,140.57,82.9]
[1740559477412,20.0,140.62,140.57,82.9]
[1740559477585,27.1114,140.62,140.57,82.9]
[1740559478417,20.0,140.58,140.56,0.03]
[1740559478579,7.1138,140.57,140.56,0.03]
[1740559478784,27.1135,140.58,140.56,0.03]
[1740559479329,20.0,140.54,140.5,0.03]
[1740559479513,20.0,140.53,140.5,0.03]
[1740559480021,20.0,140.51,140.5,0.03]
[1740559480492,27.1169,140.51,140.5,0.03]
[1740559481321,20.0,140.51,140.5,0.03]
[1740559482022,7.1165,140.52,140.5,0.03]
[1740559482319,3.50707369,140.57,140.5,0.03]
[1740559482320,84.60707369,140.57,140.5,0.03]
[1740559482489,20.0,140.54,140.5,0.03]
[1740559482689,27.1158,140.54,140.5,0.03]
[1740559482885,81.1,140.57,140.5,0.03]
[1740559483193,7.1138,140.57,140.5,82.93]
[1740559484315,20.0,140.54,140.5,82.93]
[1740559484617,7.1159,140.53,140.5,82.93]
[1740559486930,38.64964886,140.51,140.46,82.9]
[1740559487129,38.64964886,140.51,140.44,0.03]
[1740559488795,24.9109,140.5,140.44,0.03]
[1740559489326,18.64964886,140.49,140.44,0.03]
[1740559489493,20.0,140.46,140.44,0.03]
[1740559489688,20.0,140.45,140.44,0.03]
[1740559490595,27.1199,140.45,140.44,0.03]
[1740559495930,7.1189,140.47,140.44,0.03]
[1740559496432,88.2186,140.48,140.44,0.03]
[1740559497699,7.1186,140.48,140.44,0.03]
[1740559498629,7.1179,140.49,140.44,0.03]
[1740559501811,7.1179,140.49,140.44,82.93]
[1740559502435,7.1174,140.5,140.44,82.93]
[1740559503841,2.77216376,140.51,140.45,18.64964886]
[1740559504013,7.1791,140.53,140.45,238.74964886]
[1740559504211,0.063,140.53,140.45,238.74964886]
[1740559504536,0.063,140.53,140.47,20.64964886]
[1740559504739,0.063,140.53,140.49,18.64964886]
[1740559505034,0.063,140.53,140.49,237.74964886]
[1740559505441,0.063,140.53,140.5,1.5801]
[1740559507142,0.063,140.53,140.5,8.6974]
[1740559507638,0.063,140.53,140.5,1.5801]
[1740559507845,0.063,140.53,140.49,219.1]
[1740559508031,0.063,140.53,140.5,18.64964886]
[1740559509127,0.063,140.53,140.5,25.76674886]
[1740559509444,0.063,140.53,140.5,26.76674886]
[1740559509646,0.063,140.53,140.5,245.86674886]
[1740559510719,0.063,140.53,140.5,237.74964886]
[1740559511141,0.063,140.53,140.5,219.1]
[1740559511737,0.063,140.53,140.5,82.9]
[1740559511921,0.063,140.53,140.48,82.9]
[1740559511922,20.063,140.53,140.48,82.9]
[1740559512618,7.1164,140.52,140.48,82.9]
[1740559513040,7.1164,140.52,140.46,91.0686]
[1740559514245,24.9074,140.52,140.46,89.52]
[1740559517353,24.9074,140.52,140.46,82.9]
[1740559521655,27.1184,140.48,140.44,0.03]
[1740559522155,20.0,140.45,140.44,0.03]
[1740559522355,20.0,140.44,140.43,0.03]
[1740559522662,20.0,140.43,140.42,0.0001]
[1740559522863,81.1,140.44,140.42,0.0001]
[1740559523650,7.1209,140.43,140.42,0.0001]
[1740559524068,25.77054886,140.43,140.42,0.0001]
[1740559524342,20.0,140.4,140.36,0.03]
[1740559524734,20.0,140.38,140.36,0.03]
[1740559524929,20.0,140.37,140.36,0.03]
[1740559526065,20.0,140.38,140.36,0.03]
[1740559526263,10.60408907,140.43,140.36,0.03]
[1740559526468,20.0,140.4,140.36,0.03]
[1740559526768,20.0,140.39,140.36,0.03]
[1740559530167,81.1,140.42,140.36,0.03]
[1740559536483,88.2217,140.42,140.36,0.03]
[1740559536691,20.0,140.38,140.36,0.03]
[1740559538384,7.1221,140.41,140.36,0.03]
[1740559540188,81.1,140.42,140.36,0.03]
[1740559540361,10.60408907,140.43,140.36,82.93]
[1740559540562,13.48042227,140.43,140.36,82.93]
[1740559540889,20.0,140.39,140.36,82.93]
[1740559541183,20.0,140.38,140.36,0.03]
[1740559542287,27.1235,140.38,140.36,0.03]
[1740559544092,81.1,140.37,140.35,0.03]
[1740559544298,20.0,140.33,140.31,0.03]
[1740559544584,1.0,140.37,140.31,0.03]
[1740559544585,81.1,140.35,140.31,0.03]
[1740559545463,7.1255,140.34,140.31,0.03]
[1740559548170,81.1,140.33,140.31,0.03]
[1740559548585,7.1265,140.32,140.31,0.03]
[1740559549160,88.2265,140.32,140.31,0.03]
[1740559550667,20.0,140.3,140.29,0.03]
[1740559552005,20.0,140.28,140.22,0.03]
[1740559552675,24.9536,140.26,140.22,0.03]
[1740559553072,106.0536,140.26,140.22,0.03]
[1740559553493,81.1,140.25,140.22,0.03]
[1740559554287,81.1,140.24,140.22,0.03]
[1740559554492,84.00222236,140.24,140.22,0.03]
[1740559554997,7.1311,140.23,140.22,0.03]
[1740559555192,81.1,140.24,140.22,0.03]
[1740559555489,88.2306,140.24,140.22,0.03]
[1740559555701,81.1,140.24,140.22,0.03]
[1740559555870,88.2306,140.24,140.22,0.03]
[1740559556070,81.1,140.24,140.22,0.03]
[1740559557295,88.2308,140.24,140.22,0.03]
[1740559558202,7.1308,140.24,140.22,0.03]
[1740559558498,6.35557146,140.26,140.22,0.03]
[1740559558499,20.0,140.23,140.22,0.03]
[1740559559705,27.1311,140.23,140.22,0.03]
[1740559560591,20.0,140.23,140.22,0.03]
[1740559560792,7.1302,140.25,140.22,0.03]
[1740559562195,24.9555,140.25,140.22,0.03]
[1740559563010,7.1302,140.25,140.22,0.03]
[1740559563186,81.1,140.28,140.22,1.541]
[1740559563391,7.1275,140.3,140.22,84.441]
[1740559563696,24.9476,140.3,140.23,6.2528]
[1740559564397,7.1275,140.3,140.23,89.1528]
[1740559565597,7.1275,140.3,140.23,96.2838]
[1740559565788,7.1275,140.3,140.23,89.1528]
[1740559565989,81.1,140.35,140.24,18.64964886]
[1740559566195,7.1255,140.34,140.25,7.1301]
[1740559566571,7.1255,140.34,140.24,244.36964886]
[1740559566794,24.9393,140.34,140.24,244.36964886]
[1740559566995,28.5049539,140.34,140.24,244.36964886]
[1740559567598,28.5049539,140.34,140.24,225.72]
[1740559569015,18.64964886,140.33,140.24,225.72]
[1740559569217,10.6911539,140.34,140.25,18.64964886]
[1740559569517,7.1255,140.34,140.26,7.6197]
[1740559570121,7.1255,140.34,140.27,18.64964886]
[1740559570333,7.1255,140.34,140.27,237.74964886]
[1740559570617,7.1255,140.34,140.27,238.74964886]
[1740559570816,7.1245,140.36,140.3,1.5622]
[1740559571021,7.123,140.39,140.31,6.62]
[1740559571225,88.223,140.39,140.31,89.52]
[1740559571528,106.0305,140.39,140.31,89.52]
[1740559572222,7.683,140.42,140.33,6.3023]
[1740559572223,17.8677,140.42,140.33,6.3023]
[1740559572425,20.0,140.39,140.33,225.4023]
[1740559572731,20.0,140.39,140.33,89.2023]
[1740559573522,0.063,140.42,140.34,1.5475]
[1740559573723,0.063,140.42,140.35,18.64964886]
[1740559573934,0.063,140.42,140.36,13.0509]
[1740559575502,0.063,140.42,140.36,20.1753]
[1740559576016,0.063,140.42,140.37,18.64964886]
[1740559576326,0.063,140.42,140.38,1.5817]
[1740559576500,0.063,140.42,140.38,8.7048]
[1740559578413,0.063,140.42,140.39,24.81364886]
[1740559578611,0.063,140.45,140.39,24.81364886]
[1740559578612,0.063,140.45,140.39,26.81364886]
[1740559578835,0.063,140.45,140.39,245.91364886]
[1740559579234,0.063,140.45,140.41,18.64964886]
[1740559579413,0.063,140.45,140.41,25.26964886]
[1740559579734,0.063,140.45,140.42,1.5983]
[1740559579931,0.063,140.45,140.44,26.185]
[1740559580136,0.063,140.5,140.44,51.95504886]
[1740559580321,0.063,140.5,140.44,271.05504886]
[1740559580524,0.063,140.5,140.44,252.4054]
[1740559580820,0.063,140.5,140.44,254.4054]
[1740559581136,0.063,140.5,140.45,18.64964886]
[1740559581340,0.063,140.5,140.46,6.62]
[1740559581514,0.063,140.5,140.46,13.739]
[1740559581925,0.063,140.5,140.47,1.6489]
[1740559582135,0.063,140.5,140.47,220.7489]
[1740559582633,0.063,140.5,140.48,7.1184]
[1740559582931,0.063,140.5,140.49,6.0052]
[1740559583628,0.063,140.52,140.51,20.0]
[1740559583813,0.063,140.52,140.51,102.9]
[1740559584721,0.063,140.52,140.51,116.6369]
[1740559587536,0.063,140.57,140.55,20.0]
[1740559587709,0.063,140.57,140.55,102.9]
[1740559589332,0.063,140.57,140.56,32.36394886]
[1740559590113,0.063,140.57,140.56,251.46394886]
[1740559592539,0.063,140.65,140.59,20.0]
[1740559592722,0.063,140.65,140.59,239.1]
[1740559594645,0.063,140.65,140.6,7.1123]
[1740559595220,0.063,140.65,140.6,226.2123]
[1740559595421,0.063,140.65,140.62,6.0739]
[1740559595625,0.063,140.65,140.62,88.9739]
[1740559599018,0.063,140.65,140.62,96.0851]
[1740559599221,0.063,140.65,140.62,88.9739]
[1740559599933,0.063,140.65,140.62,82.9]
[1740559604544,0.063,140.65,140.59,12.8464]
[1740559604728,0.063,140.65,140.59,95.7464]
[1740559605955,7.1728,140.65,140.59,95.7464]
[1740559609865,7.1728,140.65,140.59,102.8591]
[1740559610381,7.1728,140.65,140.59,95.7464]
[1740559613386,20.27704886,140.64,140.57,82.9]
[1740559613684,1.6274,140.64,140.57,82.9]
[1740559613869,106.0474,140.65,140.57,82.9]
[1740559614760,106.0474,140.65,140.57,90.0137]
[1740559615979,99.74964886,140.64,140.57,82.9]
[1740559617192,7.1108,140.63,140.57,82.9]
[1740559619992,7.1108,140.63,140.57,90.0138]
[1740559620183,0.063,140.65,140.57,226.2138]
[1740559621065,7.173,140.65,140.57,82.9]
[1740559621483,24.9476,140.65,140.57,82.9]
[1740559622080,99.74964886,140.64,140.57,82.9]
[1740559623478,99.74964886,140.64,140.56,0.03]
[1740559623479,18.64964886,140.62,140.56,0.03]
[1740559624071,7.1113,140.62,140.56,0.03]
[1740559625182,27.27054886,140.62,140.56,0.03]
[1740559626188,7.1123,140.6,140.56,0.03]
[1740559626492,105.9932,140.6,140.56,0.03]
[1740559626870,18.64964886,140.59,140.56,0.03]
[1740559628072,7.1133,140.58,140.56,0.03]
[1740559629476,88.213,140.59,140.56,0.03]
[1740559634582,81.1,140.59,140.56,0.03]
[1740559635275,7.1113,140.62,140.56,82.93]
[1740559636610,17.7772,140.63,140.56,82.93]
[1740559636775,7.1108,140.63,140.56,90.044]
[1740559636976,10.67881654,140.63,140.56,90.044]
[1740559638394,10.67881654,140.63,140.56,91.6814]
[1740559638797,7.1108,140.63,140.56,91.6814]
[1740559640297,7.1108,140.63,140.56,98.2814]
[1740559651320,24.8879,140.63,140.56,91.1674]
[1740559653510,18.64964886,140.6,140.56,0.03]
[1740559653910,81.1,140.59,140.56,0.03]
[1740559655694,106.86294886,140.58,140.56,0.03]
[1740559655890,81.1,140.57,140.56,0.0001]
[1740559656099,20.64964886,140.57,140.56,0.0001]
[1740559656311,18.64964886,140.57,140.56,0.0001]
[1740559657718,7.1138,140.57,140.56,0.0001]
[1740559657921,27.5027,140.62,140.56,0.0001]
[1740559657922,13.7128,140.6,140.56,0.0001]
[1740559658109,20.0,140.59,140.56,0.0001]
[1740559658796,23.65183596,140.59,140.56,0.0001]
[1740559658997,30.76513596,140.59,140.56,0.0001]
[1740559661825,84.70323678,140.61,140.56,6.3255]
[1740559662006,7.1113,140.62,140.56,6.3255]
[1740559662824,10.75877892,140.62,140.56,89.2255]
[1740559664031,10.75877892,140.62,140.56,96.3395]
[1740559664411,81.1,140.63,140.56,232.5395]
[1740559664412,7.111,140.63,140.56,232.5395]
[1740559664617,7.1734,140.64,140.56,232.5395]
[1740559664819,0.063,140.64,140.56,251.3254]
[1740559665225,0.063,140.64,140.57,1.6388]
[1740559665529,0.063,140.64,140.59,18.64964886]
[1740559665829,0.063,140.64,140.61,6.6497]
[1740559666211,1.0,140.59,140.56,0.0001]
[1740559666414,6.6,140.58,140.51,6.0539]
[1740559666906,0.65756537,140.59,140.51,6.0539]
[1740559667232,20.0,140.58,140.51,6.0539]
[1740559667632,6.6,140.6,140.51,225.1539]
[1740559668323,7.1128,140.59,140.51,231.7539]
[1740559670629,7.1109,140.63,140.56,21.6655]
[1740559670834,7.1109,140.63,140.56,84.5655]
[1740559671444,18.64964886,140.62,140.56,84.5655]
[1740559671734,106.34964886,140.62,140.54,6.059]
[1740559672845,18.64964886,140.6,140.54,6.059]
[1740559673132,99.74964886,140.6,140.54,6.059]
[1740559674130,7.1128,140.59,140.54,6.059]
[1740559675021,3.63697675,140.58,140.54,6.059]
[1740559676136,7.1138,140.57,140.54,6.059]
[1740559676517,7.1138,140.57,140.52,84.4788]
[1740559676712,7.1138,140.57,140.5,12.9236]
[1740559676713,99.74964886,140.56,140.5,6.3236]
[1740559676927,106.34964886,140.56,140.5,0.03]
[1740559677127,20.0,140.52,140.5,0.03]
[1740559677328,18.64964886,140.5,140.44,1.6328]
[1740559677529,81.1,140.49,140.43,6.0059]
[1740559678036,81.1,140.49,140.42,0.03]
[1740559678037,18.64964886,140.46,140.42,0.03]
[1740559678219,99.74964886,140.46,140.42,0.03]
[1740559680117,24.9198,140.45,140.42,0.03]
[1740559680322,106.0198,140.45,140.42,0.03]
[1740559681532,24.9198,140.45,140.42,0.03]
[1740559682135,7.1199,140.45,140.42,0.03]
[1740559684148,7.1169,140.51,140.42,0.03]
[1740559684324,22.21694517,140.48,140.42,82.93]
[1740559684522,22.21694517,140.48,140.42,0.03]
[1740559684738,3.56729631,140.48,140.42,0.03]
[1740559685548,22.21694517,140.48,140.42,0.03]
[1740559686015,3.56729631,140.48,140.42,0.03]
[1740559686417,10.68589631,140.48,140.42,0.03]
[1740559687225,7.1804,140.5,140.42,219.13]
[1740559687551,3.49797231,140.49,140.42,219.13]